bitfinex/quotes_ETHUSD_20251015
["timestamp","ask_amount","ask_price","bid_price","bid_amount"]
[1760512814087,4.88477407,4127.5,4127.4,0.441]
[1760512814283,2.42283277,4127.4,4127.3,1e-08]
[1760512814682,3.0956,4127.5,4127.3,1e-08]
[1760512814985,5.51841316,4127.5,4127.3,1e-08]
[1760512815213,5.51841316,4127.5,4127.4,0.441]
[1760512815919,3.0956,4127.5,4127.4,0.441]
[1760512816300,2.462,4127.5,4127.4,0.441]
[1760512817856,2.42283277,4127.4,4127.3,1e-08]
[1760512818005,2.54363277,4127.4,4127.3,1e-08]
[1760512818731,3.17723277,4127.4,4127.3,1e-08]
[1760512818911,3.92006219,4127.4,4127.3,1e-08]
[1760512819226,10.42979019,4127.4,4127.3,1e-08]
[1760512819414,21.48257819,4127.4,4127.3,1e-08]
[1760512819616,9.31965419,4127.4,4127.3,1e-08]
[1760512819814,5.84006219,4127.4,4127.3,1e-08]
[1760512820041,1.92,4127.4,4127.3,0.44100001]
[1760512820211,6.566,4127.4,4127.3,0.44100001]
[1760512820406,8.98883277,4127.4,4127.3,0.44100001]
[1760512820740,2.42281364,4127.5,4127.3,0.44100001]
[1760512820932,0.6336,4127.7,4127.4,0.441]
[1760512821157,0.1208,4127.4,4127.3,1e-08]
[1760512821620,0.1208,4127.4,4127.3,0.44100001]
[1760512822446,5.00563277,4127.4,4127.3,1e-08]
[1760512822644,2.5828,4127.4,4127.3,1e-08]
[1760512822848,5.00563277,4127.4,4127.3,1e-08]
[1760512823344,6.44542859,4127.4,4127.3,1e-08]
[1760512823932,22.88698859,4127.4,4127.3,1e-08]
[1760512824314,25.83989559,4127.4,4127.3,1e-08]
[1760512824513,23.38327459,4127.4,4127.3,1e-08]
[1760512824716,11.59876059,4127.4,4127.3,1e-08]
[1760512825347,16.13115159,4127.4,4127.3,1e-08]
[1760512825543,14.81540959,4127.4,4127.3,1e-08]
[1760512825744,5.90342859,4127.4,4127.3,1e-08]
[1760512825949,8.36542859,4127.4,4127.3,1e-08]
[1760512826111,0.92699582,4127.4,4127.3,1e-08]
[1760512826317,2.462,4127.4,4127.3,0.44100001]
[1760512826617,2.462,4127.4,4127.3,1e-08]
[1760512826618,5.51843277,4127.4,4127.3,1e-08]
[1760512827225,17.01265677,4127.4,4127.3,1e-08]
[1760512827435,13.03738777,4127.4,4127.3,1e-08]
[1760512828045,14.58339808,4127.4,4127.3,1e-08]
[1760512828215,8.98444308,4127.4,4127.3,1e-08]
[1760512828546,14.45894208,4127.4,4127.3,1e-08]
[1760512829137,8.98444308,4127.4,4127.3,1e-08]
[1760512830344,11.16844308,4127.4,4127.3,1e-08]
[1760512830645,15.04143408,4127.4,4127.3,1e-08]
[1760512830822,13.94943408,4127.4,4127.3,1e-08]
[1760512831014,12.85743408,4127.4,4127.3,1e-08]
[1760512831217,9.08344308,4127.4,4127.3,1e-08]
[1760512831416,30.71571208,4127.4,4127.3,1e-08]
[1760512831618,2.4230886,4127.0,4124.2,1.72221585]
[1760512831822,2.42455631,4124.5,4124.2,1.625]
[1760512832059,0.6336,4124.3,4124.2,2.066]
[1760512832219,3.0986,4124.3,4124.2,2.066]
[1760512832628,3.0986,4124.3,4124.2,1.625]
[1760512832834,5.52325388,4124.3,4124.2,2.066]
[1760512833172,2.465,4124.3,4124.2,2.066]
[1760512834531,2.465,4124.3,4124.2,1.625]
[1760512834761,2.465,4124.3,4124.2,2.066]
[1760512836133,2.465,4124.3,4124.2,1.625]
[1760512836562,5.52325388,4124.3,4124.2,1.625]
[1760512836764,6.31803493,4124.3,4124.2,1.625]
[1760512838631,1.42838105,4124.3,4124.2,1.625]
[1760512838831,5.52325388,4124.3,4124.2,1.625]
[1760512839469,0.38020176,4125.1,4124.2,2.066]
[1760512839672,0.38020176,4125.1,4124.2,1.625]
[1760512839965,2.465,4125.0,4124.5,2.42453105]
[1760512840155,4.649,4124.9,4124.6,0.4622]
[1760512840562,4.649,4124.9,4124.7,0.4622]
[1760512840937,4.649,4124.9,4124.2,1.625]
[1760512841137,4.649,4124.9,4124.5,2.42451374]
[1760512841449,4.649,4124.9,4124.6,0.4622]
[1760512841651,0.1208,4124.7,4124.6,0.4622]
[1760512841860,3.008,4124.7,4124.6,2.88667752]
[1760512842169,0.1208,4125.1,4125.0,2.42424242]
[1760512842342,2.5858,4125.1,4125.0,2.42424242]
[1760512842538,0.1208,4125.1,4125.0,2.88644242]
[1760512842870,2.465,4125.1,4125.0,0.4622]
[1760512844678,2.465,4125.1,4125.0,2.88644242]
[1760512844967,2.465,4125.1,4125.0,0.4622]
[1760512846446,2.465,4125.1,4125.0,3.17510263]
[1760512849943,2.465,4125.1,4125.0,5.09510263]
[1760512850181,4.649,4125.1,4125.0,5.09510263]
[1760512852849,4.649,4125.1,4125.0,5.21590263]
[1760512856096,0.001,4126.0,4125.9,2.42371361]
[1760512856396,1.093,4126.0,4125.9,3.10046401]
[1760512856563,1.093,4126.0,4125.9,3.22126401]
[1760512856765,1.093,4126.0,4125.9,3.66946401]
[1760512857160,3.556,4126.0,4125.9,3.66946401]
[1760512860119,4.648,4126.0,4125.9,3.66946401]
[1760512861181,4.648,4126.0,4125.9,3.22126401]
[1760512861388,4.648,4126.0,4125.9,2.54451361]
[1760512861597,4.648,4126.0,4125.4,2.42396696]
[1760512861598,3.556,4126.0,4125.4,1.92]
[1760512861797,0.1532,4125.9,4125.8,2.42377235]
[1760512862492,0.2555,4125.9,4125.1,2.42418365]
[1760512862693,0.2555,4125.9,4124.8,0.4482]
[1760512862892,0.2555,4125.9,4124.9,2.42426561]
[1760512863199,0.2555,4125.9,4125.0,1.92]
[1760512863504,0.1532,4125.9,4125.6,2.42388107]
[1760512863674,0.001,4126.0,4125.9,2.42371361]
[1760512863874,2.464,4126.0,4125.9,3.42814473]
[1760512864075,2.464,4126.0,4125.9,3.4039076]
[1760512864491,2.464,4126.0,4125.9,2.9557076]
[1760512864692,2.464,4126.0,4125.9,3.4039076]
[1760512865566,2.464,4126.0,4125.9,2.42371361]
[1760512866882,2.464,4126.0,4125.9,2.87191361]
[1760512867611,2.464,4126.0,4125.2,2.42412489]
[1760512867813,2.464,4126.0,4125.9,2.42371361]
[1760512868120,2.464,4126.0,4124.9,0.4482]
[1760512868425,2.464,4126.0,4125.5,2.42391048]
[1760512868426,0.4018,4125.9,4125.5,2.42391048]
[1760512868590,0.1001,4125.8,4125.2,2.42406743]
[1760512868912,0.1001,4125.8,4124.3,0.4482]
[1760512869212,0.1001,4125.7,4124.4,2.42459509]
[1760512869423,0.1001,4125.7,4124.5,2.4245363]
[1760512869580,0.1001,4125.7,4125.2,2.4240744]
[1760512869781,0.1001,4125.7,4125.3,2.4240197]
[1760512869986,0.1001,4125.7,4125.0,0.002]
[1760512870188,2.184,4125.6,4125.4,2.42397895]
[1760512870417,0.1001,4125.5,4125.3,2.42402843]
[1760512870611,2.463,4125.4,4125.0,2.42621674]
[1760512870888,2.463,4125.4,4125.3,2.42406612]
[1760512871117,2.463,4125.4,4125.0,2.42622584]
[1760512871433,0.1001,4125.3,4125.0,0.002]
[1760512871607,0.722469,4125.3,4125.0,0.002]
[1760512871809,0.501569,4125.3,4125.2,2.42412489]
[1760512872206,0.1208,4125.2,4125.1,2.42418185]
[1760512873292,0.2209,4125.2,4125.0,0.002]
[1760512873693,0.1208,4125.2,4125.0,0.002]
[1760512873996,0.1208,4125.2,4125.1,2.42418365]
[1760512874694,0.1208,4125.2,4125.1,2.65898365]
[1760512874888,2.463,4125.4,4125.2,2.42412489]
[1760512875124,0.1218,4126.0,4125.3,0.4382]
[1760512875423,0.001,4126.0,4125.9,2.42371361]
[1760512875604,0.342,4126.0,4125.9,2.42371361]
[1760512875801,0.342,4126.0,4125.9,2.86191361]
[1760512876100,0.342,4126.0,4125.9,3.39290774]
[1760512876625,0.342,4126.0,4125.9,2.95470774]
[1760512876829,0.342,4126.0,4125.9,2.42371361]
[1760512879327,0.342,4126.0,4125.9,2.86191361]
[1760512879500,0.342,4126.0,4125.9,2.98271361]
[1760512880108,2.526,4126.0,4125.9,2.98271361]
[1760512881295,0.342,4126.0,4125.9,2.98271361]
[1760512881630,0.342,4126.0,4125.9,3.54760475]
[1760512882731,0.342,4126.0,4125.9,3.52336762]
[1760512883122,0.342,4126.0,4125.9,3.08516762]
[1760512883325,0.342,4126.0,4125.9,3.52336762]
[1760512883720,0.342,4126.0,4125.9,3.08516762]
[1760512883921,0.342,4126.0,4125.9,2.54451361]
[1760512884233,0.342,4126.0,4125.9,4.90271361]
[1760512889418,0.001,4126.5,4125.9,4.90271361]
[1760512889419,0.001,4126.5,4126.4,2.42341993]
[1760512889651,0.001,4126.5,4126.4,4.46421993]
[1760512889821,0.001,4126.5,4126.4,5.80667146]
[1760512890339,0.001,4127.4,4127.3,2.42289147]
[1760512890543,4.131,4127.4,4127.3,2.42289147]
[1760512890741,1.947,4127.4,4127.3,2.42289147]
[1760512891048,1.947,4127.4,4127.3,2.54369147]
[1760512891608,1.947,4127.4,4127.3,2.98189147]
[1760512891814,1.947,4127.4,4127.3,3.54585729]
[1760512894643,1.947,4127.4,4127.3,3.10765729]
[1760512895319,1.947,4127.4,4127.3,2.54369147]
[1760512895515,2.0482,4127.4,4126.4,0.90425153]
[1760512895716,0.1208,4127.2,4126.5,0.1208]
[1760512896048,0.1208,4127.2,4126.5,0.14503361]
[1760512896300,1.947,4127.4,4126.8,0.1208]
[1760512896549,1.947,4127.4,4127.3,2.42289147]
[1760512897522,1.947,4127.4,4127.3,2.86109147]
[1760512897748,1.947,4127.4,4127.3,3.51029876]
[1760512898418,1.947,4127.4,4127.3,3.07209876]
[1760512898748,1.947,4127.4,4127.3,3.51029876]
[1760512899946,1.947,4127.4,4127.3,3.07209876]
[1760512900145,4.131,4127.4,4127.3,2.54369147]
[1760512901532,1.947,4127.4,4127.3,3.00872038]
[1760512901720,1.947,4127.4,4127.3,2.98449147]
[1760512902065,1.947,4127.4,4127.3,4.90449147]
[1760512902261,1.947,4127.4,4127.3,5.63723876]
[1760512903880,0.001,4127.8,4127.7,2.42265668]
[1760512904277,0.001,4127.8,4127.7,2.54345668]
[1760512904982,2.3691,4127.8,4127.7,2.54345668]
[1760512905344,2.27,4127.8,4127.7,2.54345668]
[1760512905546,2.27,4127.8,4127.7,2.42265668]
[1760512905547,2.3691,4127.8,4127.7,2.42265668]
[1760512906352,2.3691,4127.8,4127.4,2.4228277]
[1760512906561,0.0991,4127.7,4127.3,0.1208]
[1760512906882,0.0991,4127.6,4127.0,0.1208]
[1760512907182,0.0991,4127.6,4127.4,2.42277926]
[1760512907361,0.1208,4127.7,4127.4,2.42282537]
[1760512907701,0.395296,4127.7,4127.0,0.1208]
[1760512907989,0.395296,4127.7,4126.8,0.002]
[1760512907990,0.0991,4127.6,4126.8,0.002]
[1760512908159,0.1208,4127.0,4126.9,2.42311929]
[1760512908761,0.0991,4127.6,4127.3,2.42285336]
[1760512909085,2.461,4127.5,4126.8,0.002]
[1760512909285,2.461,4127.5,4127.4,2.42283277]
[1760512909866,2.03561434,4128.3,4127.5,2.42272693]
[1760512910183,0.1208,4127.7,4127.0,0.1208]
[1760512910488,0.1208,4127.7,4127.6,2.42271537]
[1760512910983,2.5818,4127.7,4127.6,2.42271537]
[1760512911162,2.461,4127.7,4127.6,2.42271537]
[1760512911351,2.461,4127.7,4127.6,2.93149344]
[1760512911557,2.461,4127.7,4127.6,3.34806629]
[1760512912057,2.461,4127.7,4127.6,2.90726629]
[1760512912391,2.461,4127.7,4127.5,0.1208]
[1760512912684,2.461,4127.7,4127.6,2.42271537]
[1760512912895,2.56,4127.7,4126.8,0.002]
[1760512913258,2.56,4127.7,4127.0,2.42305597]
[1760512913259,0.1208,4127.4,4127.0,2.42305597]
[1760512913455,0.1208,4127.4,4127.2,2.42293426]
[1760512913672,0.1208,4127.4,4126.9,2.42312631]
[1760512913878,0.1208,4127.4,4127.2,2.42295018]
[1760512914063,0.1208,4127.6,4127.2,2.42295018]
[1760512914260,0.1208,4127.6,4127.5,2.42277407]
[1760512914602,2.461,4127.7,4127.6,2.42271537]
[1760512914783,2.461,4127.7,4127.6,0.5956]
[1760512914952,2.461,4127.7,4127.6,3.32015386]
[1760512915155,2.461,4127.7,4127.6,2.84535386]
[1760512915968,2.461,4127.7,4127.6,3.32015386]
[1760512916199,2.461,4127.7,4127.6,2.84535386]
[1760512916880,2.461,4127.7,4127.6,2.54351537]
[1760512917766,2.461,4127.7,4127.6,3.01831537]
[1760512919109,0.001,4128.6,4128.4,2.42218908]
[1760512919292,2.461,4128.5,4128.4,2.42218908]
[1760512920203,4.645,4128.5,4128.4,2.42218908]
[1760512920510,4.744,4128.5,4128.1,2.42236607]
[1760512920711,3.652,4128.5,4128.0,0.1208]
[1760512920899,3.553,4128.5,4128.2,2.42235016]
[1760512921214,3.553,4128.5,4128.3,2.42230444]
[1760512921375,2.461,4128.5,4128.3,2.42230444]
[1760512921581,2.56,4128.5,4128.3,2.42230444]
[1760512921907,2.461,4128.5,4128.4,2.4222459]
[1760512922211,2.461,4128.5,4128.2,2.42235346]
[1760512922410,0.099,4128.4,4128.0,2.42245831]
[1760512922634,0.099,4128.4,4127.7,0.1208]
[1760512922635,0.099,4128.3,4127.7,0.1208]
[1760512923113,0.1208,4127.7,4127.0,0.1208]
[1760512923290,0.1208,4127.7,4127.6,0.002]
[1760512923492,2.6808,4127.7,4127.6,0.002]
[1760512923688,2.5818,4127.7,4127.6,0.002]
[1760512923911,2.6808,4127.7,4127.6,0.002]
[1760512924208,2.5818,4127.7,4127.6,0.002]
[1760512927742,2.5818,4127.7,4127.6,2.42471537]
[1760512928137,2.5818,4127.7,4127.6,0.002]
[1760512928522,2.5818,4127.7,4127.6,2.42471537]
[1760512928912,2.5818,4127.7,4127.6,2.90947383]
[1760512929241,2.461,4127.7,4127.6,2.90947383]
[1760512929619,2.461,4127.7,4127.6,3.38427383]
[1760512930017,2.461,4127.7,4127.6,2.42471537]
[1760512930216,4.645,4127.7,4127.6,2.42471537]
[1760512930645,3.553,4127.7,4127.6,0.002]
[1760512930829,2.461,4127.7,4127.6,0.002]
[1760512931957,2.461,4127.7,4127.6,2.42471537]
[1760512932111,0.001,4128.3,4128.2,2.42236325]
[1760512932315,2.462,4128.3,4128.2,2.42236325]
[1760512933762,2.462,4128.3,4128.2,2.86116325]
[1760512935056,2.462,4128.3,4128.2,2.42236325]
[1760512939053,2.462,4128.3,4128.2,2.86116325]
[1760512939265,2.462,4128.3,4128.2,3.4016057]
[1760512939768,2.462,4128.3,4128.2,2.42236325]
[1760512940260,4.646,4128.3,4128.2,2.42236325]
[1760512940627,4.646,4128.3,4127.9,0.1208]
[1760512940628,3.554,4128.3,4127.9,0.1208]
[1760512940824,2.462,4128.3,4127.9,2.42252882]
[1760512941228,2.462,4128.3,4128.2,2.42236325]
[1760512942262,2.462,4128.3,4128.1,2.42241471]
[1760512942765,2.462,4128.3,4128.2,2.42236325]
[1760512943357,2.462,4128.3,4128.1,2.42240173]
[1760512943851,2.462,4128.3,4128.2,2.42236325]
[1760512945374,2.462,4128.3,4128.2,2.86116325]
[1760512945533,2.462,4128.3,4128.2,2.42236325]
[1760512946868,2.462,4128.3,4127.7,0.5596]
[1760512947052,2.462,4128.3,4128.2,2.42236325]
[1760512947259,2.462,4128.3,4128.2,2.86116325]
[1760512950182,2.185,4128.3,4128.2,5.32160674]
[1760512950346,3.553,4128.3,4128.2,5.44240674]
[1760512950951,0.001,4128.6,4128.5,2.42218723]
[1760512951168,0.001,4128.6,4128.5,2.4464091]
[1760512951349,0.001,4128.6,4128.5,4.30913703]
[1760512952281,2.461,4128.6,4128.5,4.30913703]
[1760512956485,2.461,4128.6,4128.5,6.22913703]
[1760512957386,2.345,4128.6,4128.5,6.22913703]
[1760512960092,3.436,4128.6,4128.5,6.22913703]
[1760512960397,4.527,4128.6,4128.5,6.22913703]
[1760512961095,2.345,4128.6,4128.5,6.22913703]
[1760512961393,2.345,4128.6,4128.5,5.79033703]
[1760512961557,2.345,4128.6,4128.5,2.54298723]
[1760512962491,2.345,4128.6,4128.1,2.42441709]
[1760512962492,2.444,4128.6,4128.1,2.42441709]
[1760512962697,0.099,4128.5,4128.3,2.42225228]
[1760512963062,2.4658,4128.6,4128.4,2.42224551]
[1760512963510,2.4658,4128.6,4128.5,2.42218723]
[1760512963914,2.4658,4128.6,4128.3,2.42225147]
[1760512964131,2.4658,4128.6,4128.1,2.42437425]
[1760512964315,2.5648,4128.6,4128.4,2.42222066]
[1760512964714,0.099,4128.5,4128.2,2.42231457]
[1760512964907,0.099,4128.4,4128.2,2.42231457]
[1760512965317,0.099,4128.4,4128.1,0.002]
[1760512965808,0.2198,4128.4,4128.1,2.42442114]
[1760512966152,0.1208,4128.4,4128.1,2.42442114]
[1760512966358,0.1208,4128.4,4128.1,0.002]
[1760512966659,0.1208,4128.4,4128.1,2.42441988]
[1760512966949,0.1208,4128.4,4128.1,0.002]
[1760512967355,0.64525613,4128.4,4128.1,0.002]
[1760512967537,2.42236325,4128.2,4128.1,0.002]
[1760512967934,2.52136325,4128.2,4128.1,0.002]
[1760512968323,0.099,4128.2,4128.1,0.002]
[1760512969152,2.52136325,4128.2,4128.1,0.002]
[1760512969367,3.06816401,4128.2,4128.1,0.002]
[1760512969721,0.64580076,4128.2,4128.1,0.002]
[1760512969951,0.52445613,4128.4,4128.1,0.002]
[1760512970156,2.182,4128.3,4128.1,0.002]
[1760512970558,2.3028,4128.3,4128.1,0.002]
[1760512970769,2.3028,4128.3,4128.1,2.42438341]
[1760512971067,0.1208,4128.3,4128.2,2.42236325]
[1760512971429,0.1208,4128.3,4128.1,0.002]
[1760512971430,0.46638,4128.3,4128.1,0.002]
[1760512971778,3.15496325,4128.2,4128.1,0.002]
[1760512973574,5.07496325,4128.2,4128.1,0.002]
[1760512973778,2.6526,4128.2,4128.1,0.002]
[1760512974070,4.97596325,4128.2,4128.1,0.002]
[1760512974270,5.75034797,4128.2,4128.1,0.002]
[1760512974560,5.84934797,4128.2,4128.1,0.002]
[1760512976671,5.75034797,4128.2,4128.1,0.002]
[1760512977243,8.21034797,4128.2,4128.1,0.002]
[1760512978575,8.30934797,4128.2,4128.1,0.002]
[1760512978943,19.46953097,4128.2,4128.1,0.002]
[1760512979558,14.49153997,4128.2,4128.1,0.002]
[1760512979765,10.66879497,4128.2,4128.1,0.002]
[1760512980171,12.85279497,4128.2,4128.1,0.002]
[1760512980372,19.66566343,4128.2,4128.1,0.002]
[1760512980571,3.05619799,4127.8,4127.7,0.002]
[1760512980743,31.97507763,4127.8,4127.7,0.002]
[1760512980945,13.29068263,4127.8,4127.7,0.002]
[1760512981281,14.33838163,4127.8,4127.7,0.002]
[1760512981494,14.01238163,4127.8,4127.7,0.002]
[1760512981680,20.65084599,4127.8,4127.7,0.002]
[1760512981852,16.31943799,4127.8,4127.7,0.002]
[1760512982184,30.20966668,4127.7,4127.6,1e-08]
[1760512982355,13.06111761,4127.7,4127.6,1e-08]
[1760512982559,13.16011761,4127.7,4127.6,1e-08]
[1760512982791,13.36221461,4127.7,4127.6,1e-08]
[1760512983446,13.26321461,4127.7,4127.6,1e-08]
[1760512983648,12.55862761,4127.7,4127.6,1e-08]
[1760512983847,12.55862761,4127.7,4126.1,0.2324]
[1760512983848,3.05719613,4126.1,4126.0,0.002]
[1760512984075,16.66826168,4126.1,4126.0,0.002]
[1760512984378,7.44019613,4126.1,4126.0,0.002]
[1760512984546,14.41242627,4126.1,4126.0,0.002]
[1760512984747,14.53361809,4126.1,4126.0,0.002]
[1760512984941,9.45334248,4126.1,4126.0,0.002]
[1760512985171,12.67556148,4126.1,4126.0,0.002]
[1760512985373,12.86484448,4126.1,4126.0,0.002]
[1760512986170,15.74645848,4126.1,4126.0,0.002]
[1760512986545,12.91420148,4126.1,4126.0,0.002]
[1760512987379,17.84758948,4126.1,4126.0,0.002]
[1760512987586,16.71617048,4126.1,4126.0,0.002]
[1760512988150,19.55738448,4126.1,4126.0,0.002]
[1760512989156,18.34823448,4126.1,4126.0,0.002]
[1760512989357,12.99569048,4126.1,4126.0,0.002]
[1760512989682,10.19071348,4126.1,4126.0,0.002]
[1760512990162,14.83771348,4126.1,4126.0,0.002]
[1760512990363,17.28545366,4126.1,4126.0,0.002]
[1760512990558,9.58125753,4126.1,4126.0,0.002]
[1760512990874,6.90383727,4126.1,4126.0,0.4409]
[1760512991082,4.383,4126.1,4126.0,0.4409]
[1760512991590,1.92,4126.1,4126.0,0.4409]
[1760512991880,2.42327511,4126.7,4126.0,0.4409]
[1760512992052,2.42327511,4126.7,4126.6,0.2338]
[1760512992255,4.88727511,4126.7,4126.6,0.6727]
[1760512992676,7.44087511,4126.7,4126.6,0.6727]
[1760512993384,4.384,4126.7,4126.6,0.6727]
[1760512993587,2.42247979,4128.1,4126.6,0.6727]
[1760512993882,0.1208,4126.8,4126.7,0.4389]
[1760512994051,2.5848,4126.8,4126.7,0.4389]
[1760512995993,2.5848,4126.8,4126.7,2.86214375]
[1760512996397,2.4228381,4127.4,4126.7,2.86214375]
[1760512996398,0.1208,4127.1,4126.9,2.42312521]
[1760512996580,2.464,4127.0,4126.9,2.42312521]
[1760512997262,2.464,4127.0,4126.9,2.86202521]
[1760512997491,2.464,4127.0,4126.9,0.4389]
[1760512998495,2.464,4127.0,4126.9,2.86202631]
[1760512998693,0.1208,4127.2,4127.0,2.4230676]
[1760512998902,2.463,4127.1,4127.0,2.8619676]
[1760512999093,2.463,4127.1,4127.0,0.4389]
[1760513000000,2.463,4127.1,4127.0,2.8619676]
[1760513000178,4.647,4127.1,4127.0,2.8619676]
[1760513003524,4.647,4127.1,4126.6,0.2338]
[1760513003682,0.1208,4126.9,4126.6,0.2338]
[1760513004019,0.1208,4126.9,4126.7,2.8620977]
[1760513004218,0.1208,4126.9,4126.6,0.2338]
[1760513004421,3.555,4127.1,4127.0,2.4230676]
[1760513004596,3.555,4127.1,4127.0,2.8619676]
[1760513006092,2.463,4127.1,4127.0,2.8619676]
[1760513007899,2.463,4127.1,4127.0,0.4389]
[1760513008101,2.463,4127.1,4127.0,2.8619676]
[1760513009209,2.463,4127.1,4126.6,0.2338]
[1760513009406,2.72148,4127.1,4126.5,0.1208]
[1760513009654,2.54393295,4126.9,4126.2,0.1208]
[1760513009806,0.1208,4126.3,4126.0,0.002]
[1760513010139,0.1208,4126.1,4126.0,0.002]
[1760513012337,0.1208,4126.1,4126.0,0.4409]
[1760513013127,0.1208,4126.1,4126.0,0.002]
[1760513016026,0.1208,4126.1,4126.0,2.42565487]
[1760513016539,0.1208,4126.5,4126.4,2.42341993]
[1760513016758,2.5818,4126.5,4126.2,0.4389]
[1760513016936,2.71918,4126.5,4126.0,0.002]
[1760513017127,0.1208,4126.2,4126.0,0.002]
[1760513017333,2.461,4126.1,4126.0,0.002]
[1760513018755,2.461,4126.1,4126.0,2.42565487]
[1760513019367,2.461,4126.1,4126.0,0.002]
[1760513019752,2.461,4126.1,4126.0,2.86455487]
[1760513020232,4.645,4126.1,4126.0,2.86455487]
[1760513021749,0.1208,4126.2,4126.1,2.42359613]
[1760513021972,0.1208,4126.3,4126.2,2.42353739]
[1760513022137,0.1208,4126.3,4126.2,2.88663739]
[1760513022138,2.5818,4126.3,4126.2,2.88663739]
[1760513022933,0.001,4127.1,4126.9,2.42308465]
[1760513023139,0.1218,4127.1,4127.0,2.8861676]
[1760513023344,2.5828,4127.1,4127.0,2.8861676]
[1760513023665,2.5828,4127.1,4127.0,0.4631]
[1760513024376,2.5828,4127.1,4127.0,2.8861676]
[1760513024978,2.5828,4127.1,4127.0,2.4230676]
[1760513026264,2.5828,4127.1,4127.0,2.8861676]
[1760513026946,2.5828,4127.1,4127.0,2.4230676]
[1760513027148,2.5828,4127.1,4126.5,2.4233612]
[1760513027576,2.5828,4127.1,4126.8,2.42317587]
[1760513027775,2.5828,4127.1,4126.5,2.4233612]
[1760513027776,2.5828,4127.1,4126.9,2.4231203]
[1760513029782,2.84118,4127.1,4126.6,2.42325418]
[1760513029952,2.84118,4127.1,4126.3,0.4631]
[1760513029953,2.84118,4127.1,4126.7,2.42323947]
[1760513030153,2.84118,4127.1,4126.3,0.4631]
[1760513030154,2.184,4127.0,4126.8,2.42317092]
[1760513031053,2.184,4127.0,4126.3,0.4631]
[1760513031375,2.184,4127.0,4126.6,2.42329406]
[1760513031678,2.184,4127.0,4126.7,2.42323455]
[1760513032384,2.184,4127.0,4126.8,2.4231723]
[1760513032552,2.184,4127.0,4126.9,2.42312631]
[1760513033063,2.185,4127.0,4126.9,2.42312631]
[1760513034082,2.185,4127.0,4126.9,2.86812631]
[1760513034288,1.093,4127.0,4126.9,2.86812631]
[1760513034452,3.553,4127.0,4126.9,2.86812631]
[1760513035587,2.461,4127.0,4126.9,3.39726304]
[1760513035773,2.461,4127.0,4126.9,3.51806304]
[1760513037161,0.001,4127.0,4126.9,3.51806304]
[1760513037453,0.166,4127.0,4126.9,5.43806304]
[1760513037657,0.001,4127.3,4126.9,5.43806304]
[1760513037658,0.001,4127.3,4127.2,2.42295018]
[1760513037857,0.001,4127.3,4127.2,5.153281]
[1760513038170,0.001,4127.3,4127.2,5.6948515]
[1760513038795,2.461,4127.3,4127.2,3.3298515]
[1760513038959,2.461,4127.3,4127.2,2.98875018]
[1760513040191,4.645,4127.3,4127.2,2.98875018]
[1760513043088,2.461,4127.3,4127.2,2.98875018]
[1760513045993,2.461,4127.3,4127.2,2.54375018]
[1760513046295,2.461,4127.3,4127.2,2.98875018]
[1760513046499,2.461,4127.3,4127.2,3.52993196]
[1760513047510,2.461,4127.3,4127.2,2.54375018]
[1760513048489,2.461,4127.3,4127.2,2.42295018]
[1760513048893,2.461,4127.3,4127.0,2.42302952]
[1760513049097,2.6808,4127.3,4127.0,2.42302952]
[1760513049291,2.5818,4127.3,4127.0,2.42302952]
[1760513049912,2.5818,4127.3,4126.9,2.42310905]
[1760513050101,2.5818,4127.3,4126.6,0.1208]
[1760513050102,2.184,4127.2,4127.0,2.42304872]
[1760513052017,2.184,4127.2,4126.9,2.42308536]
[1760513052212,2.184,4127.2,4127.0,2.423012]
[1760513052629,2.184,4127.2,4126.9,2.4231103]
[1760513052909,2.5818,4127.3,4127.0,2.42306709]
[1760513053120,2.5818,4127.3,4127.2,2.42295018]
[1760513053522,2.5818,4127.3,4127.1,2.42299804]
[1760513053913,2.5818,4127.3,4127.2,2.42295018]
[1760513054116,0.001,4127.3,4127.2,2.42295018]
[1760513054331,0.142,4127.3,4127.2,2.89085018]
[1760513054635,0.142,4127.3,4127.2,3.73065727]
[1760513054821,0.142,4127.3,4127.2,3.26275727]
[1760513055204,0.142,4127.3,4127.0,0.1208]
[1760513055404,0.142,4127.3,4127.1,2.42299602]
[1760513055638,0.142,4127.3,4126.7,0.1208]
[1760513055935,0.142,4127.3,4127.0,2.42306703]
[1760513056144,0.142,4127.3,4126.9,2.4231169]
[1760513057151,0.42065534,4127.3,4126.8,2.42316679]
[1760513057445,0.1208,4126.9,4126.3,0.002]
[1760513057996,0.1208,4126.9,4126.6,2.42330146]
[1760513058109,0.1208,4126.9,4126.7,2.42323514]
[1760513058310,0.1208,4126.9,4126.6,2.42326266]
[1760513058626,0.1208,4126.9,4126.5,2.42330306]
[1760513058946,0.001,4127.3,4126.9,2.42309326]
[1760513059156,0.1208,4127.1,4126.9,2.42309326]
[1760513059321,0.1208,4127.1,4127.0,2.4230676]
[1760513059711,0.1208,4127.1,4127.0,2.8909676]
[1760513059913,0.1208,4127.1,4127.0,2.4230676]
[1760513060145,2.3048,4127.1,4126.9,2.42312085]
[1760513060451,2.3048,4127.1,4126.6,0.4679]
[1760513060653,2.3048,4127.1,4126.4,0.1208]
[1760513060810,2.66058,4127.1,4126.3,0.002]
[1760513061005,0.1208,4126.7,4126.6,2.42330247]
[1760513061224,1.2128,4127.1,4127.0,2.4230676]
[1760513061623,0.1208,4127.1,4127.0,2.4230676]